[Event "Marshall CC U2400 April 2024"]
[Site "New York"]
[Date "2024.04.22"]
[Round "5.3"]
[White "Colwell, Andrew"]
[Black "Knowles, Chase"]
[Result "0-1"]
[ECO "D11"]
[WhiteElo "1792"]
[BlackElo "1978"]
[Annotator "TA"]
[PlyCount "64"]
[EventDate "2024.04.20"]
[EventType "swiss"]
[EventCountry "USA"]
[SourceTitle "playchess.com"]
[Source "ChessBase"]
[SourceQuality "1"]
[TimeControl "5400+30"]

{[%evp 9,64,6,32,29,26,20,30,0,0,0,0,6,6,-38,-24,-10,-19,-39,-31,-83,-72,-150,-160,-150,-144,-176,-183,-185,-168,-163,-155,-257,-264,-268,-271,-272,-276,-280,-280,-308,-277,-304,-300,-300,-290,-378,-349,-310,-294,-29986,-29987,-29987,-29987,-29988,-1489,-1174,-727]} 1. d4 {[%emt 0:00:02]} d5 {[%emt 0:00:08]} 2. c4 {[%emt 0:00:03]} c6 {[%emt 0:00:05]} 3. Nf3 {[%emt 0:00:03]} Nf6 {[%emt 0:00:25]} 4. e3 {[%emt 0:00:03]} a6 {[%emt 0:00:31]} 5. a4 {[%emt 0:02:12]} a5 {[%emt 0:01:57]} 6. Nc3 {[%emt 0:01:14]} e6 {[%emt 0:04:29]} 7. Bd3 {[%emt 0:00:37]} Na6 {[%emt 0:01:19]} 8. Qe2 {[%emt 0:03:01] White has an edge.} Nb4 {[%emt 0:03:58]} 9. Bb1 {[%emt 0:00:17]} dxc4 {[%emt 0:00:52][%cal Ob4d3]} 10. O-O {[%emt 0:01:06]} b6 {[%emt 0:01:34]} 11. e4 {[%emt 0:02:29][%cal Of1d1]} Be7 {[%emt 0:03:28]} 12. Rd1 {[%emt 0:02:32]} Ba6 {[%emt 0:01:20]} 13. Ne5 $1 {[%emt 0:00:38] Dodges Nd3} Qc7 {[%emt 0:04:00]} 14. Bf4 {[%emt 0:00:40]} (14. Nxc4 $15 Rd8 15. e5) 14... Bd6 $1 $17 {[%emt 0:05:09][%cal Be7d6,Bd6f4,Bf4h6][%mdl 32] aiming for ...c5. White is on the road to losing.} 15. Nxf7 {[%emt 0:30:15]} Bxf4 {[%emt 0:04:01]} 16. Nxh8 {[%emt 0:00:17] [#] Strongly threatening e5.} O-O-O $1 {[%emt 0:01:07] Black is more active.} ({Of course not} 16... Bxh2+ $6 17. Kh1 e5 18. g3 (18. Kxh2 exd4+ 19. Kg1 d3 $17) 18... Bxg3 19. fxg3 $15) 17. g3 {[%emt 0:02:24] [#]} Bh6 {[%emt 0:02:59]} (17... Rxh8 18. e5 Bh6 (18... Nfd5 19. Nxd5 Nxd5 20. gxf4 $11) 19. exf6 $16) 18. e5 {[%emt 0:03:06]} Nfd5 {[%emt 0:01:03]} 19. Qg4 {[%emt 0:00:16]} Qe7 {[%emt 0:01:36]} 20. Ne4 {[%emt 0:07:52]} (20. Bxh7 $17 {was necessary.} Rxh8 21. Nxd5 cxd5 22. Bg6) 20... Rxh8 $19 {[%emt 0:00:56]} 21. Nd6+ {[%emt 0:00:06]} Kb8 {[%emt 0:03:30]} 22. Ra3 {[%emt 0:00:33]} Nd3 {[%emt 0:03:55]} 23. Bxd3 {[%emt 0:11:47]} cxd3 {[%emt 0:00:53]} 24. Qe4 {[%emt 0:02:05]} Rf8 {[%emt 0:06:23]} 25. Raxd3 {[%emt 0:05:45]} Bxd3 {[%emt 0:01:23]} 26. Rxd3 {[%emt 0:00:17]} Qg5 {[%emt 0:04:49]} 27. b3 {[%emt 0:02:21]} Qc1+ {[%emt 0:02:11]} 28. Kg2 {[%emt 0:00:08][%cal Od3f3]} Qc2 {[%emt 0:00:33]} 29. Kh3 $2 {[%emt 0:09:58]} (29. Rf3 $19 Qxe4 30. Nxe4 Rxf3 31. Kxf3) 29... Rxf2 {[%emt 0:05:57]} 30. Rf3 {[%emt 0:02:36]} Rxh2+ {[%emt 0:00:10]} 31. Kg4 {[%emt 0:00:14]} Qxe4+ {[%emt 0:00:08]} (31... Qd2 $142 32. Rd3 Qg5+ 33. Kf3 Qc1 34. Kg4 Qf1 35. Qe1 Qxe1 36. Rf3 Ne3+ 37. Rxe3 Qxe3 38. Nf7 Qe4#) 32. Nxe4 {[%emt 0:00:06]} Ne3+ {[%emt 0:00:02] Weighted Error Value: White=0.43/Black=0.26 (precise) .  Mistake:       	White=4     	---        Inaccurate:     	White=2     	---        OK:         	White=9     	Black=14     Best:        	White=1     	Black=2      Strong:       	White=1     	Black=2} 0-1

[Event "Marshall CC U2400 April 2024"]
[Site "New York"]
[Date "2024.04.22"]
[Round "5.4"]
[White "Berg, George"]
[Black "Stancil, Kimani"]
[Result "1-0"]
[ECO "B75"]
[WhiteElo "1832"]
[BlackElo "1873"]
[Annotator "NA RC COMBH"]
[PlyCount "101"]
[EventDate "2024.04.20"]
[EventType "swiss"]
[EventCountry "USA"]
[SourceTitle "playchess.com"]
[Source "ChessBase"]
[SourceQuality "1"]
[TimeControl "5400+30"]

1. e4 {[%emt 0:00:03]} c5 {[%emt 0:02:56]} 2. Nf3 {[%emt 0:00:09]} d6 {[%emt 0:00:04]} 3. d4 {[%emt 0:00:06]} cxd4 {[%emt 0:00:03]} 4. Nxd4 {[%emt 0:00:05]} Nf6 {[%emt 0:00:02]} 5. Nc3 {[%emt 0:00:09]} g6 {[%emt 0:00:03]} 6. Be3 {[%emt 0:00:08]} Bg7 {[%emt 0:00:14]} 7. f3 {[%emt 0:00:04]} Nc6 {[%emt 0:00:53]} 8. Qd2 {[%emt 0:00:12]} h5 {[%emt 0:01:58]} 9. O-O-O {[%emt 0:00:55]} Bd7 {[%emt 0:01:26]} 10. Kb1 {[%emt 0:04:18]} a6 {[%emt 0:00:41] has lost popularity (10...Rc8). B75: Sicilian Dragon: Yugoslav Attack, Miscellaneous.} 11. Nxc6 {[%emt 0:04:39]} bxc6 {[%emt 0:03:11]} 12. Bc4 {[%emt 0:00:06]} Rb8 $146 {[%emt 0:09:15]} ({Predecessor:} 12... Qa5 13. Bd4 Rb8 14. b3 c5 15. Bxf6 Bxf6 16. Nd5 Qxd2 17. Nxf6+ exf6 18. Rxd2 Rb6 19. Kb2 Be6 {½-½ Malmstroem,J (1871)-Ponting,A (1898) LSS RB-2008-0-00034}) 13. e5 {[%emt 0:10:47]} dxe5 {[%emt 0:00:43]} 14. Ne4 {[%emt 0:00:21]} Nd5 {[%emt 0:08:32]} 15. Bxd5 {[%emt 0:00:18]} cxd5 {[%emt 0:00:05]} 16. Qxd5 {[%emt 0:00:05]} Bb5 {[%emt 0:00:22]} 17. Qxd8+ {[%emt 0:07:12]} Rxd8 {[%emt 0:00:01]} 18. Rxd8+ {[%emt 0:00:15]} Kxd8 {[%emt 0:00:03]} 19. Ng5 {[%emt 0:00:15]} Ke8 {[%emt 0:04:22]} 20. Rd1 {[%emt 0:00:27]} Bf6 {[%emt 0:01:14]} 21. Ne4 {[%emt 0:04:02]} Kf8 {[%emt 0:09:24]} 22. Nxf6 {[%emt 0:04:08]} exf6 {[%emt 0:00:01]} 23. b3 {[%emt 0:00:10]} Kg7 {[%emt 0:00:52]} 24. c4 {[%emt 0:00:10]} Bc6 {[%emt 0:00:30]} 25. Rd6 {[%emt 0:01:27]} Rc8 {[%emt 0:00:01]} 26. Bb6 {[%emt 0:00:33]} ({White should play} 26. Kc2 $16) 26... h4 {[%emt 0:00:41]} (26... f5 $142) 27. Bd8 {[%emt 0:01:51]} Rxd8 $4 {[%emt 0:00:22]} (27... f5 $16 {was called for.}) 28. Rxd8 {[%emt 0:01:07]} e4 {[%emt 0:02:14]} 29. Rd6 {[%emt 0:01:55]} h3 {[%emt 0:01:02]} 30. g3 {[%emt 0:01:58]} exf3 $18 {[%emt 0:00:20] [#]} 31. Rd2 $1 {[%emt 0:01:03]} (31. Rxc6 $2 {too greedy.} f2 32. Rd6 f1=Q+ $19 (32... f1=B $2 33. c5 $18)) 31... f5 {[%emt 0:00:06]} 32. Kc1 {[%emt 0:01:38]} Kf6 {[%emt 0:00:28]} 33. Kd1 {[%emt 0:00:06]} ({Inferior is} 33. Rd6+ Ke5 34. Rd2 (34. Rxc6 $2 {is the wrong capture.} f2 $19) 34... f4 35. gxf4+ Kxf4 $11) 33... Ke5 {[%emt 0:00:31]} 34. Ke1 {[%emt 0:00:05]} g5 {[%emt 0:01:02]} 35. Kf2 {[%emt 0:00:44]} g4 {[%emt 0:00:01]} 36. b4 {[%emt 0:11:13]} f4 {[%emt 0:09:18]} 37. gxf4+ {[%emt 0:00:27]} Kxf4 {[%emt 0:00:03]} 38. Rd6 {[%emt 0:00:12]} Be8 {[%emt 0:02:15]} 39. Rxa6 {[%emt 0:06:07]} f5 {[%emt 0:00:04]} 40. Rd6 {[%emt 0:01:46]} Ke5 {[%emt 0:00:44]} 41. Rd2 {[%emt 0:03:01]} f4 {[%emt 0:00:27]} 42. b5 {[%emt 0:00:47]} Ke4 {[%emt 0:04:09]} 43. Rd1 {[%emt 0:03:34]} Kf5 {[%emt 0:02:15]} 44. a4 {[%emt 0:00:38]} Kg5 {[%emt 0:00:05]} 45. a5 {[%emt 0:03:44]} Kh4 {[%emt 0:00:39]} 46. Rd4 {[%emt 0:00:07]} Kg5 {[%emt 0:00:15]} 47. a6 {[%emt 0:00:21]} Bh5 {[%emt 0:01:49]} 48. a7 {[%emt 0:01:14]} g3+ {[%emt 0:02:45]} 49. hxg3 {[%emt 0:00:04]} h2 {[%emt 0:00:14]} 50. gxf4+ {[%emt 0:00:04]} Kg4 {[%emt 0:03:18]} 51. Rd1 {[%emt 0:00:06]} 1-0

[Event "Marshall CC U2400 April 2024"]
[Site "New York"]
[Date "2024.04.22"]
[Round "5.5"]
[White "Jiang, Jason"]
[Black "Patay, Travis"]
[Result "1-0"]
[ECO "D10"]
[WhiteElo "2005"]
[BlackElo "2008"]
[Annotator "TA"]
[PlyCount "77"]
[EventDate "2024.04.20"]
[EventType "swiss"]
[EventCountry "USA"]
[SourceTitle "playchess.com"]
[Source "ChessBase"]
[SourceQuality "1"]
[TimeControl "5400+30"]

{[%evp 12,77,26,30,31,6,20,6,19,19,20,22,21,15,15,18,19,7,12,0,25,6,29,8,15,0,3,15,4,-14,-13,-19,-13,-27,-30,-25,-21,-75,-7,-9,0,0,0,0,0,0,97,101,152,44,38,33,31,27,988,981,1214,1206,1119,1047,1519,1491,1736,1733,1723,1707,1670,1589]} 1. c4 {[%emt 0:00:07]} c6 {[%emt 0:00:04]} 2. Nc3 {[%emt 0:00:13]} d5 {[%emt 0:00:06]} 3. cxd5 {[%emt 0:00:09]} cxd5 {[%emt 0:00:04]} 4. d4 {[%emt 0:00:05]} Nf6 {[%emt 0:00:09]} 5. Bf4 {[%emt 0:00:15]} Nc6 {[%emt 0:01:28]} 6. e3 {[%emt 0:00:15]} e6 {[%emt 0:00:50]} 7. Bd3 {[%emt 0:00:57]} Bb4 {[%emt 0:01:51]} 8. Nge2 {[%emt 0:01:19]} O-O {[%emt 0:08:56]} 9. a3 {[%emt 0:01:30]} Bd6 {[%emt 0:03:09] The position is equal.} 10. O-O {[%emt 0:01:59]} h6 {[%emt 0:01:08]} 11. b4 {[%emt 0:02:45]} b6 {[%emt 0:02:04]} 12. Qd2 {[%emt 0:09:48]} Bb7 {[%emt 0:01:09]} 13. Rfc1 {[%emt 0:02:24]} Rc8 {[%emt 0:03:42]} 14. Bb5 {[%emt 0:04:19]} Ne7 {[%emt 0:01:26]} 15. Rc2 {[%emt 0:02:05]} Ng6 {[%emt 0:03:40]} 16. Bg3 {[%emt 0:01:31]} h5 {[%emt 0:03:10]} 17. Bd3 {[%emt 0:01:30]} (17. Bxd6 {feels hotter.} Qxd6 18. h3 Ne4 19. Qd1) 17... Bxg3 {[%emt 0:02:01]} 18. Nxg3 {[%emt 0:02:28]} h4 {[%emt 0:01:21]} 19. Nge2 {[%emt 0:01:31]} Ne4 {[%emt 0:07:55]} 20. Nxe4 {[%emt 0:01:48]} dxe4 {[%emt 0:02:24]} 21. Rxc8 {[%emt 0:00:59]} Qxc8 {[%emt 0:00:16]} 22. Bb5 {[%emt 0:01:32] [#]} h3 $1 {[%emt 0:02:44]} 23. g3 {[%emt 0:00:59] Wards off Nh4} e5 {[%emt 0:10:09]} 24. d5 {[%emt 0:01:54]} (24. dxe5 $11 Nxe5 25. Nd4) 24... a6 {[%emt 0:07:55]} (24... Qg4 $17 {aiming for ...Qf3.} 25. Qd1 a6) 25. Ba4 $1 $11 {[%emt 0:00:17]} Qf5 {[%emt 0:05:35] Hoping for ...Qf3.} (25... Qg4 {keeps more tension.} 26. Bd1 Nh4 27. Nd4 Qd7) 26. Bd1 $1 {[%emt 0:00:35]} Rd8 {[%emt 0:01:50]} 27. Nc3 {[%emt 0:01:37]} Ne7 {[%emt 0:01:06][%cal Re7d5]} 28. Bc2 {[%emt 0:01:10]} Qd7 {[%emt 0:07:21]} ({Reject} 28... Bxd5 $6 29. Bxe4 Qd7 30. Nxd5 Nxd5 31. Rd1 $16) (28... Rxd5 $1 $11 {remains equal.} 29. Nxd5 Qf3 30. Nxe7+ (30. Bxe4 Qxe4 31. Nxe7+ Kh7 $11) 30... Kh7) 29. Bxe4 $16 {[%emt 0:01:51]} f5 {[%emt 0:00:39]} (29... Nxd5 $142 30. Nxd5 Bxd5) 30. Bf3 {[%emt 0:00:39]} (30. Bc2 $16) 30... Nxd5 $14 {[%emt 0:08:21]} 31. Bxd5+ {[%emt 0:05:30]} (31. Nxd5 {simplifies} Bxd5 32. Be2 Bb7 33. Qxd7 Rxd7 34. Bf1) 31... Bxd5 {[%emt 0:00:27]} 32. Rd1 {[%emt 0:00:18]} Bc6 {[%emt 0:01:00][%mdl 8192] [#] This move loses the game for Black.} (32... Be6 $11 33. Qxd7 (33. Qe2 Qe8 $15) 33... Rxd7) 33. Qa2+ $18 {[%emt 0:01:15] White is clearly winning.} Kh7 {[%emt 0:03:16]} 34. Rxd7 {[%emt 0:00:16]} Bxd7 {[%emt 0:00:19]} 35. Qd5 {[%emt 0:01:59]} e4 {[%emt 0:00:09]} 36. Qd6 {[%emt 0:00:59]} Rc8 {[%emt 0:00:18]} 37. Qxd7 {[%emt 0:00:15]} Rxc3 {[%emt 0:00:14]} 38. Qxf5+ {[%emt 0:00:06]} Kg8 {[%emt 0:00:21]} 39. Qxh3 {[%emt 0:50:51] Weighted Error Value: White=0.15 (very precise) /Black=0.18 (very precise) .  Loses game:     	---       	Black=1      Mistake:       	White=2     	Black=3      OK:         	White=7     	Black=8      Best:        	White=2     	Black=1      Strong:       	White=2     	---} (39. Qxe4 $2 Rc1#) 1-0